bitfinex/quotes_SOLUSD_20220302
["timestamp","ask_amount","ask_price","bid_price","bid_amount"]
[1646223992513,64.78712162,103.85,103.73,34.2466202]
[1646223992715,64.78712162,103.85,103.73,28.2466202]
[1646223992914,65.03712162,103.85,103.74,2.54904003]
[1646223993113,9.853,103.84,103.71,26.12803581]
[1646223993314,114.11,103.84,103.71,2.54904003]
[1646223993513,45.96847729,103.83,103.71,11.6621718]
[1646223993712,14.4592,103.81,103.71,0.25]
[1646223993912,16.08702417,103.81,103.7,22.8548]
[1646223994112,16.08702417,103.81,103.71,6.0]
[1646223994312,27.62702417,103.81,103.71,0.25]
[1646223994714,61.26280882,103.8,103.7,8.58286128]
[1646223994912,62.78463483,103.8,103.7,8.58286128]
[1646223995311,62.78463483,103.8,103.68,49.0382]
[1646223995512,74.32463483,103.8,103.68,49.0382]
[1646223996113,72.80280882,103.8,103.69,2.54904003]
[1646223996315,46.80170882,103.8,103.71,0.55176917]
[1646223996516,47.05170882,103.8,103.71,0.55176917]
[1646223998129,47.05170882,103.8,103.71,14.459]
[1646223998328,47.05170882,103.8,103.71,14.709]
[1646223999226,47.05170882,103.8,103.72,10.82075254]
[1646223999833,46.80170882,103.8,103.72,10.82075254]
[1646224000035,46.80170882,103.8,103.72,83.09855254]
[1646224000230,51.9654,103.83,103.72,179.66855254]
[1646224000432,51.9654,103.83,103.73,0.29550662]
[1646224000634,48.1104,103.83,103.72,165.21075254]
[1646224001231,56.34396404,103.82,103.72,165.21075254]
[1646224001830,56.34396404,103.82,103.72,0.25]
[1646224002036,58.26857049,103.82,103.71,0.25]
[1646224002231,62.12257049,103.82,103.7,24.8388]
[1646224002534,94.0258073,103.82,103.7,24.8388]
[1646224002732,6.0,103.81,103.7,24.8388]
[1646224002931,73.17173508,103.8,103.7,24.8388]
[1646224003733,73.17173508,103.8,103.7,25.0888]
[1646224004133,73.42173508,103.8,103.68,35.9758]
[1646224004337,73.42173508,103.8,103.69,6.0]
[1646224004536,73.42173508,103.8,103.68,35.9758]
[1646224004938,73.42173508,103.8,103.68,46.34158615]
[1646224006137,73.42173508,103.8,103.68,60.80478615]
[1646224006337,43.45627249,103.78,103.68,60.80478615]
[1646224006538,43.45627249,103.78,103.68,215.19478615]
[1646224006737,43.45627249,103.78,103.68,217.74382618]
[1646224008241,45.2636,103.8,103.69,0.29690235]
[1646224008440,45.2636,103.8,103.72,14.4573]
[1646224008641,36.4994,103.83,103.73,0.30352257]
[1646224008839,36.4994,103.83,103.72,14.7073]
[1646224009060,54.53482937,103.81,103.73,1.23776217]
[1646224009559,54.53482937,103.81,103.72,14.7073]
[1646224009762,56.38413406,103.81,103.72,0.25]
[1646224009961,56.38413406,103.81,103.7,17.25874003]
[1646224010364,56.38413406,103.81,103.71,10.99907496]
[1646224010570,70.84353406,103.81,103.71,0.25]
[1646224010762,199.31677087,103.81,103.69,24.5731]
[1646224010962,6.0,103.8,103.69,24.8231]
[1646224011165,104.32983289,103.8,103.69,24.5731]
[1646224011364,124.6930697,103.8,103.69,24.5731]
[1646224011563,52.13128747,103.79,103.7,8.44897408]
[1646224011765,53.88425377,103.79,103.7,8.44897408]
[1646224011966,53.88425377,103.79,103.69,24.5731]
[1646224012266,14.4638,103.78,103.69,24.5731]
[1646224012866,52.08996649,103.77,103.69,35.98254337]
[1646224013267,52.08996649,103.77,103.69,24.5731]
[1646224014565,66.55476649,103.77,103.69,24.5731]
[1646224014766,66.55476649,103.77,103.68,38.8984]
[1646224014966,68.39406352,103.77,103.68,0.25]
[1646224015167,68.39406352,103.77,103.67,6.0]
[1646224015369,68.64406352,103.77,103.66,23.3992]
[1646224015568,179.05983326,103.77,103.66,23.3992]
[1646224016171,200.38058063,103.77,103.66,23.3992]
[1646224016368,200.38058063,103.77,103.64,46.8402]
[1646224016569,220.74381744,103.77,103.64,46.8402]
[1646224017169,234.73814703,103.77,103.64,46.8402]
[1646224017369,238.59514703,103.77,103.64,46.8402]
[1646224017569,96.57,103.75,103.62,18.329]
[1646224017871,96.57,103.75,103.63,6.0]
[1646224017872,14.4728,103.72,103.63,6.0]
[1646224018269,43.48456201,103.71,103.63,6.0]
[1646224019271,43.48456201,103.71,103.62,3.858]
[1646224019771,43.48456201,103.71,103.62,0.73681274]
[1646224019971,57.95786201,103.71,103.62,0.73681274]
[1646224020172,58.20786201,103.71,103.62,0.73681274]
[1646224020775,57.95786201,103.71,103.62,0.73681274]
[1646224020975,43.48456201,103.71,103.62,15.20841274]
[1646224021177,43.48456201,103.71,103.64,9.16930738]
[1646224021375,43.48456201,103.71,103.64,9.41930738]
[1646224021974,43.48456201,103.71,103.64,0.25]
[1646224022374,43.48456201,103.71,103.6,46.5069]
[1646224022576,43.48456201,103.71,103.61,6.0]
[1646224022577,45.25594548,103.71,103.61,6.0]
[1646224022776,141.82594548,103.71,103.61,6.0]
[1646224022978,155.67171522,103.71,103.59,27.21014003]
[1646224023176,16.41101406,103.67,103.57,14.4781]
[1646224023376,48.94985277,103.66,103.56,10.61899677]
[1646224024378,65.32470488,103.66,103.57,6.0]
[1646224024577,109.98935192,103.65,103.55,6.0]
[1646224024778,109.98935192,103.65,103.53,99.8454]
[1646224024978,2.30576974,103.64,103.53,99.8454]
[1646224025177,15.56331959,103.64,103.53,99.8454]
[1646224025378,59.11969169,103.63,103.54,8.88422064]
[1646224025580,61.42546143,103.63,103.54,8.88422064]
[1646224025780,62.99873809,103.63,103.53,99.8454]
[1646224026179,16.17006466,103.62,103.52,14.4855]
[1646224026379,18.7258344,103.62,103.51,3.861]
[1646224026580,18.7258344,103.62,103.5,47.9522]
[1646224026779,58.52811461,103.61,103.51,8.78762976]
[1646224027582,60.23039732,103.61,103.51,9.03762976]
[1646224028286,73.01481461,103.61,103.51,81.09432976]
[1646224028482,73.01481461,103.61,103.53,2.81591856]
[1646224029079,2.30576974,103.62,103.53,2.81591856]
[1646224029080,26.0246,103.63,103.53,3.06591856]
[1646224029282,47.0449,103.64,103.54,0.25530972]
[1646224029480,47.0449,103.64,103.53,157.20591856]
[1646224030081,60.40042435,103.63,103.55,8.78762976]
[1646224030282,45.54498418,103.67,103.55,163.17762976]
[1646224030582,0.25,103.67,103.56,0.45386877]
[1646224030783,13.84576974,103.7,103.57,69.11]
[1646224030784,52.84428996,103.69,103.57,69.11]
[1646224031080,52.84428996,103.69,103.57,165.93]
[1646224031282,44.93777518,103.68,103.58,2.81591856]
[1646224031585,44.93777518,103.68,103.6,8.78762976]
[1646224031782,44.93777518,103.68,103.6,9.03762976]
[1646224032180,44.93777518,103.68,103.6,8.78762976]
[1646224032384,44.93777518,103.68,103.57,47.8539]
[1646224032582,46.76529908,103.68,103.58,6.0]
[1646224033185,59.41497518,103.68,103.58,78.0473]
[1646224033388,59.41497518,103.68,103.59,10.42263952]
[1646224034085,3.859,103.72,103.62,96.57]
[1646224034286,29.2154,103.74,103.64,154.14]
[1646224034487,46.9923,103.76,103.65,69.11]
[1646224034685,46.9923,103.76,103.65,165.93]
[1646224035087,46.75831278,103.75,103.66,1.1809088]
[1646224035287,46.75831278,103.75,103.66,12.9709088]
[1646224036185,46.75831278,103.75,103.67,14.465]
[1646224036686,46.75831278,103.75,103.66,12.9709088]
[1646224036687,46.75831278,103.75,103.66,70.5409088]
[1646224037085,47.00831278,103.75,103.66,167.1109088]
[1646224037285,47.00831278,103.75,103.66,70.5409088]
[1646224037685,47.00831278,103.75,103.66,12.9709088]
[1646224038185,47.00831278,103.75,103.66,27.4372088]
[1646224038588,47.00831278,103.75,103.66,26.2563]
[1646224038989,47.00831278,103.75,103.66,11.79]
[1646224039388,61.47611278,103.75,103.66,11.79]
[1646224039795,61.47611278,103.75,103.66,21.30688233]
[1646224039987,61.47611278,103.75,103.66,78.87688233]
[1646224040188,61.47611278,103.75,103.66,21.30688233]
[1646224040786,61.47611278,103.75,103.66,11.79]
[1646224041292,61.47611278,103.75,103.66,26.0061]
[1646224041688,61.47611278,103.75,103.66,11.54]
[1646224042087,44.65536839,103.73,103.66,26.0059]
[1646224042289,44.65536839,103.73,103.66,11.54]
[1646224042888,44.65536839,103.73,103.66,11.79]
[1646224043492,44.65536839,103.73,103.66,23.16260342]
[1646224044392,44.65536839,103.73,103.66,11.54]
[1646224044593,44.65536839,103.73,103.64,96.57]
[1646224044794,44.65536839,103.73,103.64,108.11]
[1646224044994,6.0,103.72,103.64,96.57]
[1646224045194,44.65536839,103.73,103.64,96.57]
[1646224045594,44.65536839,103.73,103.65,0.373305]
[1646224048396,44.65536839,103.73,103.67,10.44570602]
[1646224048797,61.4583,103.76,103.67,10.44570602]
[1646224048999,14.466,103.76,103.67,164.58570602]
[1646224049200,14.466,103.76,103.67,176.37570602]
[1646224049500,14.716,103.76,103.67,176.37570602]
[1646224049799,52.81462451,103.76,103.67,193.38934605]
[1646224049998,52.81462451,103.76,103.68,0.2453529]
[1646224050221,52.81462451,103.76,103.69,165.68]
[1646224050398,52.81462451,103.76,103.7,1.1578423]
[1646224051699,52.81462451,103.76,103.67,2.79904003]
[1646224051901,52.81462451,103.76,103.67,11.79]
[1646224052299,67.28012451,103.76,103.67,11.54]
[1646224052503,69.58589425,103.76,103.66,3.856]
[1646224052703,6.0,103.75,103.66,3.856]
[1646224052901,14.76,103.75,103.66,3.856]
[1646224053103,2.30576974,103.74,103.66,3.856]
[1646224053705,59.52782476,103.73,103.66,3.856]
[1646224054101,73.99912476,103.73,103.66,3.856]
[1646224054303,180.0,103.72,103.6,48.2361]
[1646224054512,289.88251619,103.72,103.59,5.0]
[1646224054703,2.30576974,103.71,103.59,5.0]
[1646224055005,43.25206099,103.69,103.59,5.0]
[1646224055203,61.44836172,103.67,103.59,5.0]
[1646224055605,61.44836172,103.67,103.56,96.57]
[1646224056006,61.44836172,103.67,103.57,154.14]
[1646224056205,61.44836172,103.67,103.57,57.57]
[1646224056408,61.44836172,103.67,103.57,72.0485]
[1646224057507,61.44836172,103.67,103.57,28.59586341]
[1646224057743,61.44836172,103.67,103.55,169.9814]
[1646224057907,61.44836172,103.67,103.55,170.2314]
[1646224058707,61.44836172,103.67,103.56,57.57]
[1646224058908,61.44836172,103.67,103.56,0.25]
[1646224059112,61.44836172,103.67,103.56,14.7301]
[1646224059311,61.44836172,103.67,103.57,3.16420058]
[1646224059911,61.44836172,103.67,103.56,14.7301]
[1646224060212,6.0,103.66,103.56,14.7301]
[1646224060413,20.4813,103.66,103.56,14.7301]
[1646224060610,34.32588837,103.66,103.55,47.3908]
[1646224060811,153.48997255,103.65,103.54,123.95736717]
[1646224061010,70.27372177,103.65,103.54,97.2462]
[1646224061412,70.27372177,103.65,103.53,48.5306]
[1646224061413,14.4843,103.63,103.53,48.5306]
[1646224061616,11.54,103.62,103.5,78.3595]
[1646224061811,116.23035778,103.62,103.5,92.8471]
[1646224062111,53.97465276,103.61,103.5,104.2012429]
[1646224062313,166.2199151,103.61,103.49,46.2069]
[1646224062512,111.0597,103.6,103.49,46.2069]
[1646224062712,108.11,103.59,103.48,23.1022]
[1646224062913,15.79997821,103.59,103.48,23.1022]
[1646224063113,2.30458837,103.58,103.47,81.4602]
[1646224063312,11.54,103.57,103.47,5.0]
[1646224064115,18.47553513,103.56,103.47,5.0]
[1646224064316,67.50950343,103.55,103.47,5.52219137]
[1646224064516,55.96950343,103.55,103.47,5.0]
[1646224065621,57.53460168,103.55,103.47,5.0]
[1646224065817,106.26222594,103.55,103.47,5.0]
[1646224066017,108.56681431,103.55,103.47,5.0]
[1646224067019,11.54,103.54,103.47,5.0]
[1646224067221,16.37273558,103.53,103.47,5.0]
[1646224067422,6.0,103.52,103.47,5.0]
[1646224067620,50.21141263,103.52,103.41,39.0521]
[1646224067820,52.17555513,103.52,103.41,39.0521]
[1646224068020,76.81092198,103.51,103.42,5.69939314]
[1646224068219,77.06092198,103.51,103.42,5.69939314]
[1646224068421,46.44409772,103.51,103.42,20.19799314]
[1646224069022,6.0,103.52,103.42,20.44799314]
[1646224069218,11.54,103.55,103.42,128.55799314]
[1646224069620,3.865,103.56,103.46,14.4918]
[1646224069821,17.70858837,103.59,103.46,168.8818]
[1646224070024,52.7406769,103.58,103.47,17.66610632]
[1646224070321,56.6036769,103.58,103.47,15.01015518]
[1646224070921,56.6036769,103.58,103.48,14.4905]
[1646224071121,94.57054782,103.58,103.48,14.7405]
[1646224071324,94.57054782,103.58,103.49,5.69939314]
[1646224071524,68.1436769,103.58,103.49,5.94939314]
[1646224071723,52.7406769,103.58,103.49,5.94939314]
[1646224072747,55.04526527,103.58,103.49,5.94939314]
[1646224072947,55.29526527,103.58,103.49,0.25]
[1646224073149,81.32806527,103.58,103.46,5.0]
[1646224073349,102.53156749,103.58,103.46,62.57]
[1646224073549,126.8455355,103.58,103.46,62.57]
[1646224074049,56.83234987,103.56,103.45,23.5129]
[1646224074250,70.27873636,103.56,103.45,23.5129]
[1646224074549,72.58332473,103.56,103.45,23.5129]
[1646224074949,72.58332473,103.56,103.46,16.79914127]
[1646224075352,85.17213824,103.56,103.46,16.79914127]
[1646224075552,82.86754987,103.56,103.46,16.79914127]
[1646224076551,83.11754987,103.56,103.46,16.79914127]
[1646224076752,87.06881255,103.56,103.46,16.79914127]
[1646224076953,85.42213824,103.56,103.46,74.36914127]
[1646224077355,104.05053793,103.56,103.46,16.79914127]
[1646224077657,101.74594956,103.56,103.46,16.79914127]
[1646224077855,87.00074956,103.56,103.46,74.36914127]
[1646224078055,87.00074956,103.56,103.46,88.86264127]
[1646224078354,87.00074956,103.56,103.46,31.29264127]
[1646224078563,87.00074956,103.56,103.46,16.79914127]
[1646224078753,57.08523606,103.54,103.46,16.79914127]
[1646224079156,57.08523606,103.54,103.45,23.5129]
[1646224079354,71.58263606,103.54,103.45,23.5129]
[1646224079555,110.77809742,103.54,103.44,99.1004]
[1646224079854,110.77809742,103.54,103.44,23.6096]
[1646224080261,110.77809742,103.54,103.44,43.5891762]
[1646224080657,110.77809742,103.54,103.44,43.8391762]
[1646224080855,110.77809742,103.54,103.44,23.8596]
[1646224081057,110.77809742,103.54,103.44,23.6096]
[1646224081058,207.34809742,103.54,103.44,23.6096]
[1646224081258,231.66206543,103.54,103.44,23.6096]
[1646224081757,207.34809742,103.54,103.44,23.6096]
[1646224082759,211.21309742,103.54,103.44,23.6096]
[1646224082958,114.64309742,103.54,103.44,29.57594748]
[1646224083158,85.42722443,103.54,103.44,29.57594748]
[1646224083559,85.42722443,103.54,103.44,183.96594748]
[1646224083764,85.67722443,103.54,103.44,183.96594748]
[1646224083961,85.67722443,103.54,103.44,87.39594748]
[1646224084162,85.67722443,103.54,103.44,198.46294748]
[1646224084360,57.08523606,103.54,103.44,203.46294748]
[1646224084759,57.08523606,103.54,103.44,198.46294748]
[1646224084959,57.08523606,103.54,103.47,14.49320084]
[1646224085159,57.08523606,103.54,103.47,14.74320084]
[1646224085762,57.08523606,103.54,103.47,29.23610084]
[1646224086162,47.846,103.57,103.48,160.14]
[1646224086359,44.10543725,103.58,103.48,160.39]
[1646224086565,40.24143725,103.58,103.48,160.39]
[1646224086967,54.85883725,103.58,103.48,160.39]
[1646224087165,48.62592982,103.57,103.49,63.53634748]
[1646224087365,48.62592982,103.57,103.49,63.78634748]
[1646224087766,48.62592982,103.57,103.49,78.27614748]
[1646224088265,74.26144888,103.6,103.5,154.14]
[1646224088468,23.44504888,103.6,103.5,154.39]
[1646224088666,48.63426801,103.61,103.5,0.25]
[1646224088875,60.17426801,103.61,103.5,0.25]
[1646224089071,6.0,103.6,103.49,20.45554748]
[1646224089268,74.00996924,103.59,103.49,6.21634748]
[1646224089469,100.30484869,103.59,103.49,6.21634748]
[1646224089669,102.60943698,103.59,103.49,6.21634748]
[1646224089869,106.72243698,103.59,103.49,0.25]
[1646224090177,2.30458829,103.58,103.46,27.1652]
[1646224090371,14.4936,103.56,103.46,23.3022]
[1646224090572,26.0336,103.56,103.46,23.3022]
[1646224090773,2.29876176,103.55,103.46,23.3022]
[1646224091072,47.56916369,103.54,103.46,23.3022]
[1646224091275,62.06586369,103.54,103.44,50.2743]
[1646224091472,75.90462545,103.54,103.44,50.2743]
[1646224091669,172.47462545,103.54,103.43,14.4978]
[1646224091970,198.33616267,103.54,103.41,3.865]
[1646224092173,3.865,103.53,103.37,15.405]
[1646224092370,111.0758,103.49,103.37,20.31469066]
[1646224092570,42.75275801,103.48,103.37,20.31469066]
[1646224092771,60.29275801,103.48,103.37,77.88469066]
[1646224092970,42.75275801,103.48,103.37,77.88469066]
[1646224093472,46.91364993,103.48,103.37,20.31469066]
[1646224093669,61.41914993,103.48,103.37,30.95629066]
[1646224093870,54.96837589,103.46,103.37,30.95629066]
[1646224094271,54.96837589,103.46,103.37,16.44969066]
[1646224094673,69.47617589,103.46,103.37,16.44969066]
[1646224094871,69.47617589,103.46,103.36,147.8544]
[1646224095072,6.0,103.45,103.36,75.7762]
[1646224095273,6.0,103.45,103.36,3.867]
[1646224095474,2.29876176,103.44,103.31,11.54]
[1646224095675,98.07568455,103.42,103.3,18.2954]
[1646224095873,55.31482666,103.38,103.3,14.4274]
[1646224096073,55.31482666,103.38,103.3,33.24591843]
[1646224096275,55.31482666,103.38,103.29,18.3875]
[1646224096475,57.61358842,103.38,103.27,0.48395248]
[1646224096674,63.53958842,103.38,103.27,0.48395248]
[1646224096974,61.24082666,103.38,103.27,21.00375248]
[1646224097174,55.31482666,103.38,103.28,6.42004003]
[1646224097373,55.31482666,103.38,103.31,5.0]
[1646224097576,55.31482666,103.38,103.32,6.0]
[1646224097783,4.14205332,103.41,103.33,14.68968095]
[1646224097784,2.29876176,103.41,103.33,14.68968095]
[1646224097975,14.5151,103.41,103.33,14.68968095]
[1646224098376,11.54,103.43,103.33,14.68968095]
[1646224098577,11.54,103.43,103.33,14.93968095]
[1646224098778,59.25685908,103.42,103.33,14.93968095]
[1646224099177,3.869,103.44,103.33,14.93968095]
[1646224099377,117.8966,103.46,103.35,154.14]
[1646224099378,26.7417,103.46,103.35,154.14]
[1646224099578,15.408,103.49,103.36,6.0]
[1646224099877,11.54,103.49,103.36,8.79904003]
[1646224100084,54.83328096,103.48,103.37,8.3189074]
[1646224100278,54.83328096,103.48,103.4,14.68968095]
[1646224100683,25.22871314,103.51,103.4,14.93968095]
[1646224101082,25.22871314,103.51,103.4,0.25]
[1646224101385,35.91768339,103.5,103.39,5.0]
[1646224101681,35.91768339,103.5,103.37,79.4719]
[1646224101682,26.27330134,103.49,103.37,79.4719]
[1646224101881,11.54,103.48,103.37,79.4719]
[1646224102079,9.867,103.47,103.37,79.4719]
[1646224102279,79.84163497,103.46,103.37,95.04904539]
[1646224102480,80.09163497,103.46,103.37,95.04904539]
[1646224103284,84.03225061,103.46,103.37,15.57714539]
[1646224103883,67.88026618,103.46,103.36,48.5575]
[1646224104082,67.88026618,103.46,103.36,48.8075]
[1646224104881,67.88026618,103.46,103.37,16.72579845]
[1646224105082,65.58163497,103.46,103.37,16.97579845]
[1646224105286,65.33163497,103.46,103.37,16.97579845]
[1646224105583,11.54,103.46,103.37,16.97579845]
[1646224105883,25.22971314,103.49,103.38,2.54904003]
[1646224105884,15.408,103.49,103.38,2.54904003]
[1646224106081,26.45113121,103.5,103.4,14.5021]
[1646224106282,26.45113121,103.5,103.4,168.6421]
[1646224106681,26.45113121,103.5,103.41,3.73374987]
[1646224106682,63.6863647,103.5,103.41,3.73374987]
[1646224106885,59.8203647,103.5,103.41,3.98374987]
[1646224107184,3.866,103.52,103.42,154.14]
[1646224107382,15.405,103.55,103.43,0.26703724]
[1646224107582,11.54,103.55,103.43,0.26703724]
[1646224107982,11.54,103.55,103.43,2.54904003]
[1646224108184,60.01782876,103.54,103.45,154.14]
[1646224108486,60.01782876,103.54,103.46,4.87681171]
[1646224109284,15.405,103.56,103.46,101.44681171]
[1646224109487,11.54,103.56,103.46,101.44681171]
[1646224109686,11.54,103.56,103.47,57.57]
[1646224109884,3.864,103.57,103.47,154.39]
[1646224110286,60.90352046,103.57,103.48,169.72273661]
[1646224110485,26.8621,103.58,103.48,169.72273661]
[1646224110685,22.9991,103.58,103.48,184.46333661]
[1646224111087,22.9991,103.58,103.48,30.32333661]
[1646224111489,60.56712835,103.57,103.48,30.32333661]
[1646224111685,60.56712835,103.57,103.48,30.07333661]
[1646224112086,60.81712835,103.57,103.48,30.07333661]
[1646224112491,62.86575956,103.57,103.48,30.07333661]
[1646224112690,2.29863121,103.57,103.48,87.89333661]
[1646224113292,2.29863121,103.57,103.48,30.32333661]
[1646224113491,39.43620139,103.58,103.48,15.83273661]
[1646224113694,64.45351985,103.57,103.48,15.58273661]
[1646224113892,68.49207456,103.57,103.48,15.58273661]
[1646224114093,88.63045437,103.57,103.48,15.58273661]
[1646224114893,6.0,103.56,103.48,15.58273661]
[1646224115093,80.89053087,103.57,103.48,15.58273661]
[1646224115495,47.9394704,103.55,103.48,15.58273661]
[1646224116095,48.1894704,103.55,103.45,72.0649]
[1646224116298,48.1894704,103.55,103.45,72.3149]
[1646224116896,48.1894704,103.55,103.45,168.8849]
[1646224117096,48.1894704,103.55,103.48,1.77677567]
[1646224117299,16.79313121,103.57,103.48,1.77677567]
[1646224117496,22.9991,103.58,103.48,2.02677567]
[1646224118296,47.13191579,103.57,103.5,18.68277265]
[1646224118496,47.13191579,103.57,103.5,18.93277265]
[1646224118696,47.13191579,103.57,103.5,76.50277265]
[1646224119096,47.13191579,103.57,103.5,173.07277265]
[1646224119298,24.0095,103.6,103.5,173.07277265]
[1646224119496,26.05001102,103.61,103.5,173.07277265]
[1646224119697,24.0379,103.62,103.5,187.56057265]
[1646224119997,24.0379,103.62,103.5,190.10961268]
[1646224120196,48.13251612,103.62,103.5,190.10961268]
[1646224120397,48.13251612,103.62,103.5,195.10961268]
[1646224120797,48.13251612,103.62,103.52,154.14]
[1646224121098,48.13251612,103.62,103.52,170.65127567]
[1646224121519,48.13251612,103.62,103.53,2.54904003]
[1646224121716,48.13251612,103.62,103.55,57.57]
[1646224121917,48.13251612,103.62,103.56,5.62100604]
[1646224122318,36.66921102,103.65,103.56,5.62100604]
[1646224122517,6.0,103.64,103.56,5.62100604]
[1646224122719,36.66921102,103.65,103.56,5.62100604]
[1646224122919,14.4822,103.65,103.56,5.62100604]
[1646224123119,6.0,103.64,103.56,5.87100604]
[1646224123318,50.54682743,103.63,103.56,5.87100604]
[1646224124123,74.50626064,103.67,103.56,160.01100604]
[1646224124321,29.78053121,103.67,103.56,160.01100604]
[1646224124623,23.6209,103.67,103.56,162.56004607]
[1646224124823,6.15863121,103.7,103.57,0.33725399]
[1646224125022,52.20971012,103.69,103.57,0.33725399]
[1646224125223,52.20971012,103.69,103.57,2.54904003]
[1646224125424,52.20971012,103.69,103.59,57.57]
[1646224125623,52.20971012,103.69,103.6,5.62100604]
[1646224125823,14.4764,103.69,103.6,20.09530604]
[1646224126025,14.4764,103.69,103.6,20.34530604]
[1646224126225,16.77503121,103.69,103.6,20.34530604]
[1646224126426,16.77503121,103.69,103.6,5.62100604]
[1646224126627,38.36099632,103.69,103.6,5.62100604]
[1646224126825,51.44870773,103.68,103.6,5.62100604]
[1646224127028,14.4784,103.67,103.6,5.62100604]
[1646224127225,54.18391611,103.66,103.6,5.62100604]
[1646224127426,14.4784,103.67,103.6,5.62100604]
[1646224127626,0.25,103.67,103.6,5.62100604]
[1646224127926,2.29863121,103.68,103.6,5.62100604]
[1646224128225,2.54863121,103.68,103.6,5.62100604]
[1646224128425,55.37099216,103.68,103.6,5.62100604]
[1646224130328,55.37099216,103.68,103.6,63.19100604]
[1646224130526,2.54863121,103.68,103.6,63.19100604]
[1646224130726,0.25,103.68,103.6,63.44100604]
[1646224130928,6.0,103.69,103.6,63.44100604]
[1646224131128,6.0,103.69,103.6,174.48560604]
[1646224131530,2.29863121,103.7,103.62,154.14]
[1646224131733,176.21141824,103.78,103.62,154.39]
[1646224131734,26.04501102,103.73,103.62,154.39]
[1646224131932,5.0,103.75,103.64,154.14]
[1646224132131,5.0,103.75,103.68,154.14]
[1646224132331,5.0,103.75,103.68,154.39]
[1646224132531,5.0,103.75,103.68,2.79904003]
[1646224132729,5.0,103.75,103.69,14.83854228]
[1646224133431,3.856,103.78,103.69,14.83854228]
[1646224133432,8.856,103.78,103.69,14.83854228]
[1646224133629,6.0,103.77,103.69,14.83854228]
[1646224133829,61.77610224,103.77,103.69,14.83854228]
[1646224134031,76.23980224,103.77,103.69,14.83854228]
[1646224134230,76.23980224,103.77,103.69,4.66836916]
[1646224134434,70.23980224,103.77,103.69,4.66836916]
[1646224136035,74.09580224,103.77,103.69,4.66836916]
[1646224136432,74.34580224,103.77,103.69,4.66836916]
[1646224137733,70.48980224,103.77,103.69,4.66836916]
[1646224139039,90.37818205,103.77,103.64,23.8878]
[1646224139238,6.0,103.76,103.64,23.8878]
[1646224139439,14.4703,103.73,103.64,23.8878]
[1646224139940,2.29820877,103.76,103.65,9.38541919]
[1646224140138,5.0,103.76,103.66,102.57]
[1646224140338,26.39079909,103.8,103.66,8.79904003]
[1646224140940,50.42048956,103.79,103.67,5.90395601]
[1646224141140,64.88288956,103.79,103.7,9.38541919]
[1646224141339,64.88288956,103.79,103.7,9.63541919]
[1646224142040,34.34787981,103.81,103.7,24.09581919]
[1646224142240,14.4595,103.81,103.71,154.14]
[1646224142442,14.4595,103.81,103.71,154.39]
[1646224143041,55.79315076,103.8,103.72,0.90395601]
[1646224143640,56.04315076,103.8,103.72,0.90395601]
[1646224144945,56.04315076,103.8,103.71,0.25]
[1646224145243,90.39163057,103.8,103.69,24.1436]
[1646224145443,190.944976,103.8,103.69,24.1436]
[1646224145645,102.57,103.79,103.67,23.1346]
[1646224145943,48.40830817,103.78,103.67,31.59757199]
[1646224146142,69.9468403,103.78,103.67,31.59757199]
[1646224146343,54.60202736,103.76,103.67,31.59757199]
[1646224147042,69.06912736,103.76,103.67,31.59757199]
[1646224147243,71.36733613,103.76,103.67,31.59757199]
[1646224147443,71.36733613,103.76,103.66,38.0968]
[1646224147644,71.36733613,103.76,103.66,23.6312]
[1646224148043,71.61733613,103.76,103.66,23.6312]
[1646224148648,71.61733613,103.76,103.66,91.14790215]
[1646224149050,69.31912736,103.76,103.66,187.71790215]
[1646224149246,69.06912736,103.76,103.66,190.26694218]
[1646224149447,54.60202736,103.76,103.66,195.51694218]
[1646224149845,54.60202736,103.76,103.66,190.51694218]
[1646224150046,27.78173404,103.8,103.66,204.98314218]
[1646224150248,3.856,103.79,103.68,154.14]
[1646224150447,3.856,103.79,103.68,154.39]
[1646224150646,3.856,103.79,103.68,156.93904003]
[1646224151049,52.8492384,103.78,103.69,0.34267305]
[1646224151646,52.8492384,103.78,103.71,66.22296372]
[1646224152047,27.6967,103.8,103.71,8.90296372]
[1646224152245,27.6967,103.8,103.69,22.8903]
[1646224152445,24.0259367,103.79,103.69,22.8903]